{"text_format":"1","workbook":"xlsx","n_sheets":4,"sheets":["Erfassung","Liste","Auswertung","Hilfe"],"not_rendered":{"charts":0,"images":0,"macros":1,"external_links":0,"defined_names":7,"comments":0,"pivot_tables":17},"unopened":[],"bounds":{"document_bytes":16777216,"sheet_cells":100000,"rows_first":2000,"rows_last":500,"rows_between":2000,"halvings":0,"cell_chars":16384,"cell_head_chars":4096},"cells_cut":0,"cells_raw":0,"read":"whole","date_system":"1900"}

{"sheet":"Erfassung","index":0,"n_rows":3,"n_cols":25,"rows_kept":3,"cut":false,"hidden":false,"merged":[[0,4,0,10]]}
[null,"LOGO",null,null,"Erfassungstabelle für die pfarreiliche Sozialberatung - Jahr 2016"]
[null,"Daten KlientInnen",null,null,null,null,null,null,null,null,null,null,null,null,"Zeitaufwand [Min.]",null,null,"Beratung",null,null,"Finanzielle Unterstützung [Fr.]"]
[" Dossier-Nummer"," Name Klient/in"," Datum"," Fall-Status","Wohnort (PLZ)"," Geschlecht"," Alter"," Familiäre Situation"," Anzahl Kinder"," Religionszugehörigkeit"," Nationalität"," Aufenthaltsstatus"," Zuweisung","Anzahl Gespräche"," Beratung"," Administration"," Begleitung"," Sprache in der\n Beratung"," Themen/\n Fragenstellungen "," Erbrachte\n Dienstleistungen"," Pfarreikasse"," Hilfskasse für \n     Menschen in Not"," Barkasse Asyl"," Private Stiftungen"," Kontaktaufnahme ohne\n Dossier-Eröffnung"]

{"sheet":"Liste","index":1,"n_rows":135,"n_cols":13,"rows_kept":135,"cut":false,"hidden":true,"merged":[]}
[null,null,null,null,null,null,null,"RefListe5","RefListe6","RefListe1","RefListe2","RefListe3","RefListe4"]
["Fall-Art","Geschlecht","Alter","Familiäre Situation","Religionszugehörigkeit","Nationalität","Aufenthaltsstatus","Zuweisung","Sprache in der Beratung","Themen/ Fragenstellungen","Erbrachte Dienstleistungen","Finanzielle Unterstützung ","Kontaktaufnahme ohne Dossier-Eröffnung"]
["Neu","weiblich","unter 20","Alleinstehend","Katholisch","Afghanistan","CH-Pass","(Mehrfachnennung pro Eintrag möglich)","(Mehrfachnennung pro Eintrag möglich)","(Mehrfachnennung pro Eintrag möglich)","(Mehrfachnennung pro Eintrag möglich)","(Mehrfachnennung pro Eintrag möglich)","(Mehrfachnennung pro Eintrag möglich)"]
["Fortsetzung","männlich","21-30","Paar ohne Kinder","Reformiert","Afrika","C-Ausweis","Selber","Deutsch","Finanzen","Triage","Pfarreikasse","Passanten"]
["Wiederaufnahme",null,"31-50","Paar mit Kindern","Christentum","Ägypten","B-Ausweis AuG","Bekannte/ Familie","Englisch","Gesundheit/ Krankheit","Beratung","Hilfskasse für Menschen in Not ","Tel. Anfrage"]
[null,null,"51-65","Alleinerziehend","Islam","Albanien","B-Ausweis Flüchtling","Öffentlicher Sozialdienst","Französisch","Beziehungen/ Soziale Isolation/ Freizeitgestaltung","Begleitung","Barkasse Asyl","E-Mail-Anfragen"]
[null,null,"über 65",null,"Hinduismus","Algerien","F-Ausweis AuG","Soziale Organisationen","Italienisch","Integration/ Alltagsfragen","Finanzielle Unterstützung","Private Stiftungen","Triage"]
[null,null,null,null,"Buddhismus","Angola","F-Ausweis Flüchtling","Behörden/ Polizei","Spanisch","Aus-/Weiterbildung","Sachhilfe",null,"Notunterstützung"]
[null,null,null,null,"Judentum","Äquatorialguinea","L-Ausweis","Ärzte","Portugiesisch","Wohnen","Vermittlung","Im VBA-Skript deaktiviert!!"]
[null,null,null,null,"Andere Religion","Argentinien","N-Ausweis","Pfarrblatt","Mit Dolmetschen","Arbeit","Vernetzung vor Ort"]
[null,null,null,null,"Nicht erfasst","Armenien","Abgewiesene Asylsuchende (AAS)","Internet",null,"Sozialversicherungen","Einsatz von Freiwilligen"]
[null,null,null,null,"Keine","Aserbaidschan","Asyl NEE","Seelsorgeteam",null,"Ausländerrechtliches"]
[null,null,null,null,null,"Äthiopien","AAS - Dreif","Andere",null,"Asylverfahren  "]
[null,null,null,null,null,"Balkan","Sans-Papiers ohne Asyl",null,null,"Administrative Anliegen"]
[null,null,null,null,null,"Bangladesh",null,null,null,"Diverses"]
[null,null,null,null,null,"Belgien"]
[null,null,null,null,null,"Belize"]
[null,null,null,null,null,"Benin"]
[null,null,null,null,null,"Bhutan"]
[null,null,null,null,null,"Bolivien"]
[null,null,null,null,null,"Bosnien "]
[null,null,null,null,null,"Botswana"]
[null,null,null,null,null,"Brasilien"]
[null,null,null,null,null,"Bulgarien"]
[null,null,null,null,null,"Burkina Faso"]
[null,null,null,null,null,"Burundi"]
[null,null,null,null,null,"Chile"]
[null,null,null,null,null,"China"]
[null,null,null,null,null,"Costa Rica"]
[null,null,null,null,null,"Deutschland"]
[null,null,null,null,null,"Dom.Rep."]
[null,null,null,null,null,"Ecuador"]
[null,null,null,null,null,"Elfenbeinküste"]
[null,null,null,null,null,"Eritrea"]
[null,null,null,null,null,"Estland"]
[null,null,null,null,null,"Frankreich"]
[null,null,null,null,null,"Gabun"]
[null,null,null,null,null,"Gambia"]
[null,null,null,null,null,"Georgien"]
[null,null,null,null,null,"Ghana"]
[null,null,null,null,null,"Griechenland"]
[null,null,null,null,null,"Guatemala"]
[null,null,null,null,null,"Guinea"]
[null,null,null,null,null,"Guinea-Bissau"]
[null,null,null,null,null,"Haiti"]
[null,null,null,null,null,"Honduras"]
[null,null,null,null,null,"Indien"]
[null,null,null,null,null,"Irak"]
[null,null,null,null,null,"Iran"]
[null,null,null,null,null,"Irland"]
[null,null,null,null,null,"Israel"]
[null,null,null,null,null,"Italien"]
[null,null,null,null,null,"Jamaica"]
[null,null,null,null,null,"Jemen"]
[null,null,null,null,null,"Jordanien"]
[null,null,null,null,null,"Kambodscha"]
[null,null,null,null,null,"Kamerun"]
[null,null,null,null,null,"Kanada"]
[null,null,null,null,null,"Kap Verde"]
[null,null,null,null,null,"Kasachstan"]
[null,null,null,null,null,"Kenia"]
[null,null,null,null,null,"Kirgistan"]
[null,null,null,null,null,"Kolumbien"]
[null,null,null,null,null,"Kongo"]
[null,null,null,null,null,"Kosovo"]
[null,null,null,null,null,"Kroatien"]
[null,null,null,null,null,"Kuba"]
[null,null,null,null,null,"Lateinamerika"]
[null,null,null,null,null,"Lettland"]
[null,null,null,null,null,"Libanon"]
[null,null,null,null,null,"Liberia"]
[null,null,null,null,null,"Litauen"]
[null,null,null,null,null,"Lybien"]
[null,null,null,null,null,"Madagaskar"]
[null,null,null,null,null,"Maghreb"]
[null,null,null,null,null,"Malawi"]
[null,null,null,null,null,"Malaysia"]
[null,null,null,null,null,"Mali"]
[null,null,null,null,null,"Marokko"]
[null,null,null,null,null,"Mauretanien"]
[null,null,null,null,null,"Mazedonien"]
[null,null,null,null,null,"Mexiko"]
[null,null,null,null,null,"Mongolei"]
[null,null,null,null,null,"Montenegro"]
[null,null,null,null,null,"Mosambik"]
[null,null,null,null,null,"Namibia"]
[null,null,null,null,null,"Nepal"]
[null,null,null,null,null,"Nicaragua"]
[null,null,null,null,null,"Niederlande"]
[null,null,null,null,null,"Niger"]
[null,null,null,null,null,"Nigeria"]
[null,null,null,null,null,"Nordkorea"]
[null,null,null,null,null,"Östereich"]
[null,null,null,null,null,"Pakistan"]
[null,null,null,null,null,"Palästina"]
[null,null,null,null,null,"Paraguay"]
[null,null,null,null,null,"Peru"]
[null,null,null,null,null,"Philippinen"]
[null,null,null,null,null,"Polen"]
[null,null,null,null,null,"Portugal"]
[null,null,null,null,null,"Ruanda"]
[null,null,null,null,null,"Rumänien"]
[null,null,null,null,null,"Russland"]
[null,null,null,null,null,"Schweiz"]
[null,null,null,null,null,"Senegal"]
[null,null,null,null,null,"Serbien"]
[null,null,null,null,null,"Sierra Leone"]
[null,null,null,null,null,"Slowakei"]
[null,null,null,null,null,"Slowenien"]
[null,null,null,null,null,"Somalia"]
[null,null,null,null,null,"Spanien"]
[null,null,null,null,null,"Sri Lanka"]
[null,null,null,null,null,"Südafrika"]
[null,null,null,null,null,"Sudan"]
[null,null,null,null,null,"Südkorea"]
[null,null,null,null,null,"Syrien"]
[null,null,null,null,null,"Thailand"]
[null,null,null,null,null,"Tibet"]
[null,null,null,null,null,"Togo"]
[null,null,null,null,null,"Tschechien"]
[null,null,null,null,null,"Tschetschenien"]
[null,null,null,null,null,"Tunesien"]
[null,null,null,null,null,"Türkei"]
[null,null,null,null,null,"Uganda"]
[null,null,null,null,null,"Ukraine"]
[null,null,null,null,null,"Unbekannt"]
[null,null,null,null,null,"Ungarn"]
[null,null,null,null,null,"Uruguay"]
[null,null,null,null,null,"USA"]
[null,null,null,null,null,"Usbekistan"]
[null,null,null,null,null,"Venezuela"]
[null,null,null,null,null,"Vietnam"]
[null,null,null,null,null,"Weissrussland"]
[null,null,null,null,null,"Westsahara"]
[null,null,null,null,null,"Zypern"]

{"sheet":"Auswertung","index":2,"n_rows":56,"n_cols":21,"rows_kept":56,"cut":false,"hidden":false,"merged":[]}
[]
["Daten KlientInnen",null,null,null,null,null,null,null,null,null,null,null,"Beratung"]
[]
["Fall-Status","Anzahl",null,"Geschlecht","Anzahl",null,"Nationalität","Anzahl",null,"Religionszugehörigkeit","Anzahl",null,"Gespräche","Anzahl ",null,null,"Themen/ Fragenstellungen",null,null,"Kontaktaufnahme ohne Dossier-"]
["(Leer)",null,null,"(Leer)",null,null,"(Leer)",null,null,"(Leer)",null,null,null,null,null,null,"(Mehrfachauswahl)","Summe",null,"Eröffnung (Mehrfachauswahl)","Summe"]
["Gesamtergebnis",null,null,"Gesamtergebnis",null,null,"Gesamtergebnis",null,null,"Gesamtergebnis",null,null,null,null,null,null,"Finanzen",{"$f":"COUNTIF(Erfassung!S$4:S$1000,\"*Finanzen*\")","v":0},null,"Passanten",{"$f":"COUNTIF(Erfassung!Y$4:Y$1000,\"*Passanten*\")","v":0}]
[null,null,null,null,null,null,null,null,null,null,null,null,null,null,null,null,"Gesundheit/ Krankheit",{"$f":"COUNTIF(Erfassung!S$4:S$1000,\"*Gesundheit/ Krankheit*\")","v":0},null,"Tel. Anfrage",{"$f":"COUNTIF(Erfassung!Y$4:Y$1000,\"*Tel. Anfrage*\")","v":0}]
[null,null,null,null,null,null,null,null,null,null,null,null,"Zeitaufwand",null,null,null,"Beziehungen/ Soziale Isolation/ Freizeitgestaltung",{"$f":"COUNTIF(Erfassung!S$4:S$1000,\"*Beziehungen/ Soziale Isolation/ Freizeitgestaltung*\")","v":0},null,"Triage",{"$f":"COUNTIF(Erfassung!Y$4:Y$1000,\"*Triage*\")","v":0}]
[null,null,null,null,null,null,null,null,null,null,null,null,null,null,null,null,"Integration/ Alltagsfragen",{"$f":"COUNTIF(Erfassung!S$4:S$1000,\"*Integration/ Alltagsfragen*\")","v":0},null,"Notunterstützung",{"$f":"COUNTIF(Erfassung!Y$4:Y$1000,\"*Notunterstützung*\")","v":0}]
[null,null,null,null,null,null,null,null,null,null,null,null,"Beratung","Anzahl","Summe [Min.]",null,"Aus-/Weiterbildung",{"$f":"COUNTIF(Erfassung!S$4:S$1000,\"*Aus-/Weiterbildung*\")","v":0},null,"Gesamtergebnis",{"$f":"SUM(U6:U9)","v":0}]
[null,null,null,null,null,null,null,null,null,null,null,null,null,null,null,null,"Wohnen",{"$f":"COUNTIF(Erfassung!S$4:S$1000,\"*Wohnen*\")","v":0}]
[null,null,null,"Alter","Anzahl",null,null,null,null,null,null,null,"Gesamtergebnis in Std./Min.",null,{"$f":"SUM(O11/60/24)","v":"00:00:00"},null,"Arbeit",{"$f":"COUNTIF(Erfassung!S$4:S$1000,\"*Arbeit*\")","v":0}]
["Wohnort (PLZ)","Anzahl",null,"(Leer)",null,null,null,null,null,null,null,null,null,null,null,null,"Sozialversicherungen",{"$f":"COUNTIF(Erfassung!S$4:S$1000,\"*Sozialversicherungen*\")","v":0}]
["(Leer)",null,null,"Gesamtergebnis",null,null,null,null,null,null,null,null,null,null,null,null,"Ausländerrechtliches",{"$f":"COUNTIF(Erfassung!S$4:S$1000,\"*Ausländerrechtliches*\")","v":0}]
["Gesamtergebnis",null,null,null,null,null,null,null,null,null,null,null,null,null,null,null,"Asylverfahren  ",{"$f":"COUNTIF(Erfassung!S$4:S$1000,\"*Asylverfahren*\")","v":0}]
[null,null,null,null,null,null,null,null,null,null,null,null,"Administration","Anzahl","Summe [Min.]",null,"Administrative Anliegen",{"$f":"COUNTIF(Erfassung!S$4:S$1000,\"*Administrative Anliegen*\")","v":0}]
[null,null,null,null,null,null,null,null,null,null,null,null,null,null,null,null,"Diverses",{"$f":"COUNTIF(Erfassung!S$4:S$1000,\"*Diverses*\")","v":0}]
[null,null,null,null,null,null,null,null,null,null,null,null,"Gesamtergebnis in Std./Min.",null,{"$f":"SUM(O17/60/24)","v":"00:00:00"},null,"Gesamtergebnis",{"$f":"SUM(R6:R17)","v":0}]
[]
[null,null,null,null,null,null,null,null,null," Aufenthaltsstatus","Anzahl"]
[null,null,null,null,null,null,null,null,null,"(Leer)"]
[null,null,null,null,null,null,null,null,null,"Gesamtergebnis",null,null,"Begleitung","Anzahl","Summe [Min.]",null,"Erbrachte Dienstleistungen"]
[null,null,null,"Familiäre Situation","Anzahl",null,null,null,null,null,null,null,null,null,null,null,"(Mehrfachauswahl)","Summe"]
[null,null,null,"(Leer)",null,null,null,null,null,null,null,null,"Gesamtergebnis in Std./Min.",null,{"$f":"SUM(O23/60/24)","v":"00:00:00"},null,"Triage",{"$f":"COUNTIF(Erfassung!T$4:T$1000,\"*Triage*\")","v":0}]
[null,null,null,"Gesamtergebnis",null,null,null,null,null,null,null,null,null,null,null,null,"Beratung",{"$f":"COUNTIF(Erfassung!T$4:T$1000,\"*Beratung*\")","v":0}]
[null,null,null,null,null,null,null,null,null,null,null,null,null,null,null,null,"Begleitung",{"$f":"COUNTIF(Erfassung!T$4:T$1000,\"*Begleitung*\")","v":0}]
[null,null,null,null,null,null,null,null,null,null,null,null,null,null,null,null,"Finanzielle Unterstützung",{"$f":"COUNTIF(Erfassung!T$4:T$1000,\"*Finanzielle Unterstützung*\")","v":0}]
[null,null,null,null,null,null,null,null,null,null,null,null,"Sprache in der Beratung",null,null,null,"Sachhilfe",{"$f":"COUNTIF(Erfassung!T$4:T$1000,\"*Sachhilfe*\")","v":0}]
[null,null,null,null,null,null,null,null,null,null,null,null,"(Mehrfachauswahl)",null,"Summe",null,"Vermittlung",{"$f":"COUNTIF(Erfassung!T$4:T$1000,\"*Vermittlung*\")","v":0}]
[null,null,null,null,null,null,null,null,null,null,null,null,"Deutsch",null,{"$f":"COUNTIF(Erfassung!R$4:R$1000,\"*Deutsch*\")","v":0},null,"Vernetzung vor Ort",{"$f":"COUNTIF(Erfassung!T$4:T$1000,\"*Vernetzung vor Ort*\")","v":0}]
[null,null,null,null,null,null,null,null,null,null,null,null,"Englisch",null,{"$f":"COUNTIF(Erfassung!R$4:R$1000,\"*Englisch*\")","v":0},null,"Einsatz von Freiwilligen",{"$f":"COUNTIF(Erfassung!T$4:T$1000,\"*Einsatz von Freiwilligen*\")","v":0}]
[null,null,null,null,null,null,null,null,null,null,null,null,"Französisch",null,{"$f":"COUNTIF(Erfassung!R$4:R$1000,\"*Französisch*\")","v":0},null,"Gesamtergebnis",{"$f":"SUM(R24:R31)","v":0}]
[null,null,null,"Kinder","Summe",null,null,null,null,null,null,null,"Italienisch",null,{"$f":"COUNTIF(Erfassung!R$4:R$1000,\"*Italienisch*\")","v":0}]
[null,null,null,"(Leer)",null,null,null,null,null,null,null,null,"Spanisch",null,{"$f":"COUNTIF(Erfassung!R$4:R$1000,\"*Spanisch*\")","v":0}]
[null,null,null,"Gesamtergebnis",null,null,null,null,null,null,null,null,"Portugiesisch",null,{"$f":"COUNTIF(Erfassung!R$4:R$1000,\"*Portugiesisch*\")","v":0}]
[null,null,null,null,null,null,null,null,null,null,null,null,"Mit Dolmetschen",null,{"$f":"COUNTIF(Erfassung!R$4:R$1000,\"*Mit Dolmetschen*\")","v":0}]
[null,null,null,null,null,null,null,null,null,null,null,null,"Gesamtergebnis",null,{"$f":"SUM(O30:O36)","v":0}]
[null,null,null,null,null,null,null,null,null,"Zuweisung"]
[null,null,null,null,null,null,null,null,null,"(Mehrfachauswahl)","Summe"]
[null,null,null,null,null,null,null,null,null,"Selber",{"$f":"COUNTIF(Erfassung!M$4:M$1000,\"*Selber*\")","v":0}]
[null,null,null,null,null,null,null,null,null,"Bekannte/ Familie",{"$f":"COUNTIF(Erfassung!M$4:M$1000,\"*Bekannte/ Familie*\")","v":0},null,"Finanzielle Unterstützung"]
[null,null,null,null,null,null,null,null,null,"Öffentlicher  Sozialdienst",{"$f":"COUNTIF(Erfassung!M$4:M$1000,\"*Öffentlicher Sozialdienst*\")","v":0}]
[null,null,null,null,null,null,null,null,null,"Soziale Organisationen",{"$f":"COUNTIF(Erfassung!M$4:M$1000,\"*Soziale Organisationen*\")","v":0},null,"Pfarreikasse","Anzahl","Summe [Fr.]"]
[null,null,null,null,null,null,null,null,null,"Behörden/ Polizei",{"$f":"COUNTIF(Erfassung!M$4:M$1000,\"*Behörden/ Polizei*\")","v":0}]
[null,null,null,null,null,null,null,null,null,"Ärzte",{"$f":"COUNTIF(Erfassung!M$4:M$1000,\"*Ärzte*\")","v":0}]
[null,null,null,null,null,null,null,null,null,"Pfarrblatt",{"$f":"COUNTIF(Erfassung!M$4:M$1000,\"*Pfarrblatt*\")","v":0}]
[null,null,null,null,null,null,null,null,null,"Internet",{"$f":"COUNTIF(Erfassung!M$4:M$1000,\"*Internet*\")","v":0},null,"Hilfskasse für"]
[null,null,null,null,null,null,null,null,null,"Seelsorgeteam",{"$f":"COUNTIF(Erfassung!M$4:M$1000,\"*Seelsorgeteam*\")","v":0},null,"Menschen in Not","Anzahl","Summe [Fr.]"]
[null,null,null,null,null,null,null,null,null,"Andere",{"$f":"COUNTIF(Erfassung!M$4:M$1000,\"*Andere*\")","v":0}]
[null,null,null,null,null,null,null,null,null,"Gesamtergebnis",{"$f":"SUM(K40:K49)","v":0}]
[]
[null,null,null,null,null,null,null,null,null,null,null,null,"Barkasse Asyl","Anzahl","Summe [Fr.]"]
[]
[]
[]
[null,null,null,null,null,null,null,null,null,null,null,null,"Private Stiftungen","Anzahl","Summe [Fr.]"]

{"sheet":"Hilfe","index":3,"n_rows":20,"n_cols":3,"rows_kept":20,"cut":false,"hidden":false,"merged":[[18,0,18,2],[19,0,19,2],[17,0,17,2],[9,0,9,2],[14,0,14,2],[13,0,13,2],[11,0,11,2],[10,0,10,2],[12,0,12,2]]}
["Wie benutze ich die Tabelle"]
[]
["Blatt \"Erfassung\""]
["Art der Dateneingabe","Eingabe","Betrifft Spalten"]
["Standard","Bei diesem Feld werden die Daten manuell, d.h. ganz normal eingegeben.","Dossier-Nummer (A),  Name Klient/in (B), Datum (C), Wohnort (E),\nAnzahl Kinder (I), Anzahl Gespräche (N),  Beratung (O),  Administration (P),  Begleitung (Q), Pfarreikasse (U), Hilfskasse für Menschen in Not (V), Barkasse Asyl (W), Private Stiftungen (X)"]
["Feld mit Dropdownliste\u0080\u0080 \u0080","Bei diesem Feld müssen Sie eine Auswahl treffen, d.h. ins Feld klicken, auf den Pfeil  \u0080   rechts neben dem Feld klicken und eine Auswahl treffen.","Fall-Art (D), Geschlecht (F), Alter (G), Familiäre Situation (H), Religionszugehörigkeit (J), Nationalität (K), Aufenthaltsstatus (L)"]
["Eingabemaske für Mehrfachauswahl","- Doppelklick in Eingabefeld und  „Ctrl“-Taste\n   drücken um mehrere Elemente auszuwählen.\n- Feld leeren= letzte (leere) Zeile auswählen.","Zuweisung (M), Sprache in der Beratung (R), Themen/ Fragenstellungen (S), Erbrachte Dienstleistungen (T), Kontaktaufnahme ohne Dossier-Eröffnung (Y)"]
[]
["Sortierung und Filter"]
["Hinweis"]
["Die Überschriften sind mit AutoFilter versehen die es erlauben, Spalten zu filtern und /oder zu sortieren -> gilt für Blatt \"Erfassung\" UND \"Auswertung\". \nDamit der AutoFilter beim Blatt \"Erfassung\" alle Daten erfasst, müssen alle Felder mit Daten gefüllt sein. Dies hat aber auf die Daten im Blatt \"Auswertung\" keinen Einfluss."]
["Filtern/sortieren"]
["Dazu muss bei der Überschrift rechts unten auf den Pfeil \u0080\u0080\u0080   zu klicken, um eine Auswahl zu treffen\u0080."]
["Löschen von aktiven Filtern (alle)"]
["Ganze Zeile der Überschrift markieren, bei >Bearbeiten >Sortieren und Filter auf \"Löschen\" klicken.\nSomit müssen nicht alle Filter gesucht und einzeln zurückgestellt werden."]
[]
["Blatt \"Auswertung\""]
["- Bei den Gruppen mit AutoFilter kann individuell ausgewertet werden."]
["- \"Anzahl\" in der Auswertungsspalte bedeutet Anzahl Datensätze."]
["- \"Summe\" in der Auswertungsspalte bedeutet zusammengezählte Positionen, unabhängig der Datensätze."]